Cogmind - Beta 12 @@@ ROGUE MODE // 2023.03.04 @ 17:03:09 Player: Elxavo Result: Destroyed by G-47 Trooper with Particle Gun Performance ------------- Evolutions (3) 1500 Regions Visited (5) 1000 Robots Destroyed (51) 255 Value Destroyed (1415) 1415 Prototype IDs (6) 120 Alien Tech Used (0) 0 Bonus (19) 19 TOTAL SCORE: 4309 Bonus ------- High Alert Combat Kills 19 Cogmind --------- Core Integrity 0/700 Matter 231/300 Energy 100/100 System Corruption 1% Temperature Cool (9) Movement Core (700) Ox13 Location -7/Factory Parts ------- > --- POWER (2) -------- (None) > --- PROPULSION (2) --- (None) > --- UTILITY (6) ------ High-capacity Storage Unit Advanced Visual Processing Unit > --- WEAPON (3) ------- (None) > --- INVENTORY (20) --- Large Storage Unit Terrain Scan Processor Improved Targeting Computer Light Armor Plating Peak State ------------ > --- POWER ------------ Light Deuterium Engine Micro Nuclear Core > --- PROPULSION ------- Light Treads Armored Treads > --- UTILITY ---------- High-capacity Storage Unit Compact Battery Large Matter Pod Advanced Visual Processing Unit Hardened Medium Armor Plating Hardened Medium Armor Plating > --- WEAPON ----------- Gatling Laser Light EM Pulse Cannon Improved Grenade Launcher > --- INVENTORY -------- Improved Ion Engine Light Nuclear Core Light Nuclear Core Light Treads Large Storage Unit Terrain Scan Processor Improved Targeting Computer Light Armor Plating Improved Light Armor Plating Insulated Plating [Rating: 36] Favorites ----------- Power Light Nuclear Core Engine Ion Engine Power Core Light Nuclear Core Propulsion Aluminum Leg Treads Armored Treads Leg Aluminum Leg Utility Large Storage Unit Storage Large Storage Unit Processor Advanced Visual Processing Unit Protection Hardened Medium Armor Plating Weapon Small Laser Energy Gun Small Laser Energy Cannon Light EM Pulse Cannon Ballistic Gun Improved Assault Rifle Launcher Improved Grenade Launcher Build | -11 -10 -10 -9 -8 -7 ------- Run | Jun Mat Min Mat Mat Fac Slots Evolved 6 | . . . 2 2 2 Power 1 | . . . 1 . . Propulsion . | . . . . . . Utility 4 | . . . . 2 2 Weapon 1 | . . . 1 . . Parts Attached 47 | 5 4 . 7 8 23 Power 13 | 1 . . 2 2 8 Engine 8 | 1 . . 2 1 4 Core 5 | . . . . 1 4 Reactor . | . . . . . . Propulsion 7 | 1 1 . 2 . 3 Treads 3 | . . . . . 3 Leg 4 | 1 1 . 2 . . Wheel . | . . . . . . Hover . | . . . . . . Flight . | . . . . . . Utility 14 | 1 2 . . 4 7 Device . | . . . . . . Storage 7 | 1 2 . . 2 2 Processor 1 | . . . . . 1 Hackware . | . . . . . . Protection 6 | . . . . 2 4 Artifact . | . . . . . . Weapon 13 | 2 1 . 3 2 5 Energy Gun 2 | 1 . . . . 1 Energy Cannon 2 | . . . . . 2 Ballistic Gun 4 | 1 1 . 1 1 . Ballistic Cannon . | . . . . . . Launcher 5 | . . . 2 1 2 Special Weapon . | . . . . . . Impact Weapon . | . . . . . . Slashing Weapon . | . . . . . . Piercing Weapon . | . . . . . . Special Melee Weapon . | . . . . . . Unidentified Prototypes . | . . . . . . Parts Lost 26 | . . . . . 26 Power 7 | . . . . . 7 Propulsion 4 | . . . . . 4 Utility 7 | . . . . . 7 Weapon 8 | . . . . . 8 Highest Loss Streak 14 | . . . . . 14 To Critical Strikes . | . . . . . . Average Slot Usage (%) 95 | . 82 100 100 100 94 Engine 10 | . 14 14 22 9 4 Core 4 | . . . . 8 7 Treads 3 | . . . . . 6 Leg 13 | . 15 28 22 18 7 Storage 26 | . 24 28 22 27 27 Processor 3 | . . . . . 7 Protection 5 | . . . . 9 8 Energy Gun 8 | . 14 14 11 9 6 Energy Cannon 1 | . . . . . 2 Ballistic Gun 7 | . 14 14 11 9 3 Launcher 6 | . . . 11 9 6 Naked Turns . | . . . . . . Heaviest Build 85 | 13 37 37 52 70 85 Greatest Support 40 | 10 20 20 20 20 40 Greatest Overweight (x) 27 | 1 3 1 2 3 27 Average Overweight (x) 2 | . 1 1 2 2 2 Largest Inventory Capacity 20 | 8 15 15 15 15 20 Average Capacity 15 | 7 11 15 15 15 16 Most Carried 15 | 6 7 8 15 15 15 Average Carried 11 | 2 5 7 13 13 11 Final Capacity 20 | 8 15 15 15 15 20 Final Carried 15 | 4 7 8 14 15 4 Class Distribution -------------------- 52% | Mutant 28% | Tank 14% | Scavenger-Tank 4% | Scavenger-Gunner Dominant Class ---------------- Mutant | -10/Materials Mutant | -10/Mines Mutant | -9/Materials Scavenger-Tank | -8/Materials Tank | -7/Factory Resources | -11 -10 -10 -9 -8 -7 ----------- Run | Jun Mat Min Mat Mat Fac Matter Collected 1104 | 229 100 . 180 59 536 Remotely . | . . . . . . Salvage Created 1248 | . 100 . 202 61 885 Parts 104 | . 6 . 20 5 73 Haulers Intercepted 1 | . . . . . 1 Recyclers Shooed 2 | . 1 . 1 . . Parts Field Recycled . | . . . . . . Retrieved Matter . | . . . . . . Parts Self-Destructed . | . . . . . . Prevented . | . . . . . . Kills | -11 -10 -10 -9 -8 -7 ------- Run | Jun Mat Min Mat Mat Fac Combat Hostiles Destroyed 32 | . 5 . 7 1 19 Guns 18 | . 5 . 6 1 6 Cannons 1 | . . . . . 1 AOE 12 | . . . 1 . 11 Classes Destroyed 10 | . 2 . 2 1 5 Worker 3 | . . . . . 3 Builder 10 | . . . . . 10 Hauler 1 | . . . . . 1 Mechanic 1 | . . . 1 . . Watcher 4 | . . . . 1 3 Swarmer 11 | . 3 . 4 . 4 Grunt 8 | . 2 . . . 6 Sentry 10 | . . . 3 1 6 Hunter 1 | . . . . . 1 Programmer 2 | . . . . . 2 Best Kill Streak 11 | . 2 . 5 1 11 Combat Bots Only 4 | . 2 . 4 1 4 Max Kills in Single Turn 4 | . 2 . 2 1 4 Gunslinging 1 | . 1 . . . . Exploded 1 | . . . 1 . 1 Melee . | . . . . . . Uniques/NPCs Destroyed . | . . . . . . Combat | -11 -10 -10 -9 -8 -7 -------- Run | Jun Mat Min Mat Mat Fac Damage Taken 4149 | . 184 . 293 42 3630 Core 828 | . 51 . 55 15 707 Absorbed by Shields . | . . . . . . Core Remaining (%) 90 | 100 . 79 86 97 . Volleys Fired 103 | . 22 . 20 4 57 Largest 3 | . 2 . 3 3 3 Hottest 196 | . 60 . 99 99 196 Shots Fired 192 | . 37 . 44 10 101 Gun 140 | . 37 . 36 7 60 Cannon 16 | . . . . . 16 Launcher 36 | . . . 8 3 25 Special . | . . . . . . Kinetic 76 | . 22 . 20 4 30 Thermal 68 | . 15 . 16 3 34 Explosive 36 | . . . 8 3 25 Electromagnetic 12 | . . . . . 12 Robot Hit Streak 15 | . 4 . 9 5 15 Robot Miss Streak 6 | . 2 . 5 3 6 Penetration Max . | . . . . . . Secondary Targets 1 | . 1 . . . . Max Gunslinging Chain 1 | . 1 . . . . Shots Hit Robots 118 | . 22 . 18 6 72 Core Hits 95 | . 9 . 15 4 67 Critical Kills . | . . . . . . Critical Parts Destroyed . | . . . . . . Critical Strikes . | . . . . . . Melee Attacks . | . . . . . . Impact . | . . . . . . Slashing . | . . . . . . Piercing . | . . . . . . Sneak Attacks . | . . . . . . Combat Hostiles . | . . . . . . Follow-up Attacks . | . . . . . . Damage Inflicted 3758 | . 236 . 446 129 2947 Guns 1358 | . 236 . 180 67 875 Cannons 242 | . . . . . 242 Explosions 2158 | . . . 266 62 1830 Melee . | . . . . . . Ramming . | . . . . . . Kinetic 625 | . 154 . 76 45 350 Thermal 972 | . 82 . 104 22 764 Explosive 2024 | . . . 266 62 1696 Electromagnetic 137 | . . . . . 137 Impact . | . . . . . . Slashing . | . . . . . . Piercing . | . . . . . . Highest Corruption 1 | . . . . . 1 Average Corruption 1 | . . . . . 1 Corruption Purged . | . . . . . . Corruption Blocked . | . . . . . . Overload Shots . | . . . . . . Overflow Damage 116 | . . . 16 . 100 Projectiles . | . . . . . . Explosions 116 | . . . 16 . 100 Melee . | . . . . . . Knockbacks . | . . . . . . Impact . | . . . . . . Kinetic . | . . . . . . Secondary . | . . . . . . Self-Inflicted Damage 374 | . . . 56 . 318 Shots 12 | . . . 1 . 11 Rammed . | . . . . . . Targets Rammed . | . . . . . . Kicked . | . . . . . . Crushed . | . . . . . . Highest Temperature 578 | . 70 . 105 105 578 Average Temperature 120 | . 37 . 36 47 154 Received Heat Transfer 852 | . 36 . 45 18 753 Effects 6 | . . . . . 6 Shutdowns 4 | . . . . . 4 Interference 1 | . . . . . 1 Short Circuit 1 | . . . . . 1 Siege Activations . | . . . . . . Robots Corrupted 1 | . . . . . 1 Combat Hostiles 1 | . . . . . 1 Parts Fried 1 | . . . . . 1 Impact Corruptions . | . . . . . . Robots Melted . | . . . . . . Combat Hostiles . | . . . . . . Parts Melted . | . . . . . . Heat Transferred 1900 | . 200 . 225 50 1425 Parts Sabotaged . | . . . . . . Parts Stolen . | . . . . . . Parts Stripped . | . . . . . . Power Chain Reactions 1 | . . . . . 1 Missiles Intercepted . | . . . . . . Alert | -11 -10 -10 -9 -8 -7 ------- Run | Jun Mat Min Mat Mat Fac Peak Influence 492 | . 130 50 243 118 492 Initial 102 | . . 50 19 102 25 Average 88 | . 79 50 68 77 109 Maximum Alert Level 2 | . . . 1 . 2 Low Security (%) 89 | 100 100 100 82 100 84 Level 1 7 | . . . 17 . 8 Level 2 3 | . . . . . 7 Level 3 . | . . . . . . Level 4 . | . . . . . . Level 5 . | . . . . . . High Security . | . . . . . . Max Security . | . . . . . . Squads Dispatched 12 | . 1 . . . 11 Investigation . | . . . . . . Extermination 3 | . . . . . 3 Reinforcement 3 | . 1 . . . 2 Assault . | . . . . . . Garrison 6 | . . . . . 6 Intercept . | . . . . . . Searches Triggered . | . . . . . . Construction Impeded 2 | . . . . . 2 Haulers Reinforced . | . . . . . . Active Scanning Responses . | . . . . . . Cargo Convoy Interrupts . | . . . . . . Stealth | -11 -10 -10 -9 -8 -7 --------- Run | Jun Mat Min Mat Mat Fac Distress Signals 1 | . . . . . 1 Communications Jammed . | . . . . . . Distress Signals . | . . . . . . Times Spotted 47 | . 8 . 8 3 28 Peak Tracking Total 6 | . 4 . 4 1 6 Tactical Retreats 4 | . 1 . . . 3 Traps | -11 -10 -10 -9 -8 -7 ------- Run | Jun Mat Min Mat Mat Fac Traps Triggered 2 | . . . . . 2 Indirectly . | . . . . . . Trap Hack Attempts . | . . . . . . Triggered . | . . . . . . Disarmed . | . . . . . . Reprogrammed . | . . . . . . Reused . | . . . . . . Traps Extracted . | . . . . . . Installed . | . . . . . . Triggered . | . . . . . . Machines | -11 -10 -10 -9 -8 -7 ---------- Run | Jun Mat Min Mat Mat Fac Machines Disabled 4 | . . . . . 4 Max in Single Turn 2 | . . . . . 2 Machines Repaired . | . . . . . . Machines Sabotaged . | . . . . . . Overloaded Fab Kills . | . . . . . . Hacking | -11 -10 -10 -9 -8 -7 --------- Run | Jun Mat Min Mat Mat Fac Machines Accessed 8 | . 2 . 2 2 2 Terminals 4 | . 1 . 2 . 1 Fabricators . | . . . . . . Repair Stations . | . . . . . . Recycling Units 1 | . 1 . . . . Scanalyzers 2 | . . . . 1 1 Garrison Access 1 | . . . . 1 . Total Hacks 28 | . 9 . 3 6 10 Successful 19 | . 4 . 3 3 9 Failed 8 | . 5 . . 3 . Catastrophic . | . . . . . . Database Lockouts 1 | . . . . . 1 Manual . | . . . . . . Terminals 12 | . 1 . 3 . 8 Fabricators . | . . . . . . Repair Stations . | . . . . . . Recycling Units 8 | . 8 . . . . Scanalyzers 7 | . . . . 5 2 Garrison Access 1 | . . . . 1 . Terminal Hacks 11 | . 1 . 3 . 7 Record 5 | . . . . . 5 Prototype ID Bank 3 | . 1 . 2 . . Emergency Access Points 1 | . . . 1 . . Alert Level 1 | . . . . . 1 Maintenance Status 1 | . . . . . 1 Fabricator Hacks . | . . . . . . Repair Station Hacks . | . . . . . . Recycling Unit Hacks 3 | . 3 . . . . Recycle Component 1 | . 1 . . . . Process 1 | . 1 . . . . Report Inventory 1 | . 1 . . . . Scanalyzer 4 | . . . . 2 2 Insert Component 2 | . . . . 1 1 Analyze 2 | . . . . 1 1 Garrison Access Hacks 1 | . . . . 1 . Unlock Access 1 | . . . . 1 . Unauthorized Hacks . | . . . . . . Terminals . | . . . . . . Fabricators . | . . . . . . Repair Stations . | . . . . . . Recycling Units . | . . . . . . Scanalyzers . | . . . . . . Garrison Access . | . . . . . . Data Cores Recovered . | . . . . . . Used . | . . . . . . Hacking Detections 5 | . . . 2 1 2 Full Trace Events . | . . . . . . Feedback Events . | . . . . . . Feedback Blocked . | . . . . . . Robot Schematics Acquired . | . . . . . . Robots Built . | . . . . . . Authchips . | . . . . . . Time . | . . . . . . Total Robot Build Rating . | . . . . . . Part Schematics Acquired 1 | . . . . . 1 Parts Built . | . . . . . . Authchips . | . . . . . . Time . | . . . . . . Total Part Build Rating . | . . . . . . Parts Repaired . | . . . . . . Time . | . . . . . . Parts Recycled 1 | . 1 . . . . Recycled Matter 22 | . 22 . . . . Retrieved Matter . | . . . . . . Retrieved Components . | . . . . . . Parts Scanalyzed 2 | . . . . 1 1 Part Schematics Acquired 1 | . . . . . 1 Parts Damaged . | . . . . . . Bothacking | -11 -10 -10 -9 -8 -7 ------------ Run | Jun Mat Min Mat Mat Fac Used RIF Installer . | . . . . . . Robots Hacked . | . . . . . . Non-combat . | . . . . . . Combat . | . . . . . . Robot Hacks Applied . | . . . . . . Relay Couplers Released . | . . . . . . Fabnet Peak Effective % . | . . . . . . Robots Rewired . | . . . . . . Allies Hacked . | . . . . . . Hacks Repelled . | . . . . . . Allies | -11 -10 -10 -9 -8 -7 -------- Run | Jun Mat Min Mat Mat Fac Total Allies . | . . . . . . Largest Group . | . . . . . . Highest-Rated Group . | . . . . . . Highest-Rated Ally . | . . . . . . Total Orders . | . . . . . . Ally Attacks . | . . . . . . Total Damage . | . . . . . . Kills . | . . . . . . Allies Corrupted . | . . . . . . Allies Melted . | . . . . . . Intel | -11 -10 -10 -9 -8 -7 ------- Run | Jun Mat Min Mat Mat Fac Robot Analysis Total . | . . . . . . Derelict Logs Recovered 1 | . . 1 . . . Drone Launches . | . . . . . . Drone Recoveries . | . . . . . . Exploration | -11 -10 -10 -9 -8 -7 ------------- Run | Jun Mat Min Mat Mat Fac Turns Passed 3962 | 83 365 182 779 611 1942 Spaces Moved 1264 | 50 120 96 269 195 534 Core 18 | 9 . . . . 9 Treads 267 | . . . . . 267 Legs 979 | 41 120 96 269 195 258 Wheels . | . . . . . . Hover . | . . . . . . Flight . | . . . . . . Fastest Speed 50 | 50 190 190 260 260 245 Average Speed 282 | 141 247 190 260 296 327 Slowest Speed 1400 | 190 330 190 260 330 1400 Overloaded Moves . | . . . . . . Propulsion Burnouts . | . . . . . . Robots Hopped . | . . . . . . Cave-ins Triggered . | . . . . . . Exploration Rate (%) 22 | 4 27 34 32 22 13 Regions Visited 5 Branch Regions 1 Pre-discovered Areas 1 | . . 1 . . . Known Exits Taken . | . . . . . . Unknown Exits Taken 5 | 1 1 1 1 1 . Scrap Searched . | . . . . . . Spaces Dug . | . . . . . . Terrain Destroyed 244 | . . . 46 24 174 Melee . | . . . . . . Projectile . | . . . . . . AOE 244 | . . . 46 24 174 Terrain Rammed . | . . . . . . Walls Destroyed . | . . . . . . Machines Disabled . | . . . . . . Actions | -11 -10 -10 -9 -8 -7 --------- Run | Jun Mat Min Mat Mat Fac Total 1484 | 63 154 96 313 223 635 Wait 7 | . . . 3 . 4 Move 1259 | 49 119 95 268 194 534 Hop . | . . . . . . Pick Up 49 | 9 7 1 11 10 11 Fast Attach 1 | . . . . . 1 Attach 31 | 5 3 . 2 2 19 Detach 1 | . 1 . . . . Swap 15 | . 1 . 5 6 3 Drop 18 | . 1 . 4 7 6 Fire 103 | . 22 . 20 4 57 Melee . | . . . . . . Ram . | . . . . . . Kick . | . . . . . . Crush . | . . . . . . Escape Stasis . | . . . . . . Rewire . | . . . . . . Trap . | . . . . . . Miscellaneous . | . . . . . . Route ------- -11/Junkyard -10/Materials -10/Mines -9/Materials -8/Materials (discovered 2 exits: *Fac / Gar) -7/Factory History --------- Turn | Location | Event 3 | -11/Junkyard | Discovered new exit (range 15) 84 | -11/Junkyard | Entered Materials 305 | -10/Materials | Build established: Mutant 406 | -10/Materials | Discovered new exit (range 16) 449 | -10/Materials | Entered Mines 457 | -10/Mines | Learned location of Mines (-8) 550 | -10/Mines | Received a Rocket Launcher from a helpful Derelict 612 | -10/Mines | Discovered new exit (range 10) 631 | -10/Mines | Entered Materials 631 | -9/Materials | Evolved 2 slots: Power x1, Weapon x1 1379 | -9/Materials | Discovered new exit (range 8) 1410 | -9/Materials | Entered another Materials area 1410 | -8/Materials | Evolved 2 slots: Utility x2 1708 | -8/Materials | Build established: Scavenger-Tank 1794 | -8/Materials | Identified exit to Garrison 1933 | -8/Materials | Discovered new exit (range 9) 2021 | -8/Materials | Entered Factory 2021 | -7/Factory | Evolved 2 slots: Utility x2 2271 | -7/Factory | Build established: Mutant 2850 | -7/Factory | Build established: Tank 2861 | -7/Factory | Garrison activated, responded to threat 3112 | -7/Factory | Lost 5 parts (2p1u2w) 3148 | -7/Factory | Central database locked down 3582 | -7/Factory | Garrison activated, responded to threat 3945 | -7/Factory | Core integrity fell below 50% 3955 | -7/Factory | Core integrity fell below 20% 3963 | -7/Factory | Destroyed by G-47 Trooper with Particle Gun Last Messages --------------- 03901_ Gatling Laser destroyed. 03902_ Acquired 11 matter. 03903_ R-06 Scavenger collects Wheel. 03907_ Hrd. Medium Armor Plating destroyed. 03923_ Imp. Ion Engine destroyed. 03926_ A-02 Transporter destroyed. 03927_ Plasma Cannon destroyed. 03929_ Lgt. Nuclear Core destroyed. 03930_ Imp. Light Armor Plating destroyed. 03933_ P-60 Hacker resets G-47 Trooper, system corruption cleaned. 03935_ Lgt. Treads destroyed. 03936_ K-01 Serf collects debris. 03938_ Broken Arm. Treads destroyed. 03938_ Insulated Plating destroyed. 03940_ Mic. Nuclear Core destroyed. 03940_ K-01 Serf collects debris. 03945_ Lrg. Matter Pod destroyed. 03945_ K-01 Serf collects debris. 03947_ Com. Battery destroyed. 03951_ K-01 Serf collects debris. Map ----- +----------------------------------------------------+ | ??#?????# ! = #???????????????????????????????? | | ??# ?# #???????????????????????????????? | | ??# ?# #???????????????????????????????? | | ??# ?+ #???????????????????????????????? | | ??# ?# #???????????????????????????????? | | ??# ?# #???????????????????????????????? | | ???# ## #???????????????????????????????? | | ???# ## ######??????????????????????????? | | ???# ## # #??????????????????????????? | | ???# ####+### # #??????????????????????????? | | ???# # # #??????????????????????????? | | ??## #### #??????????????????????????? | | ??## + #??????????????????????????? | | ??## #### #??????????????????????????? | | ??### !! # #??????????????????????????? | | ?## # =%! ### # #??????????????????????????? | | ?# # # ## # #??????????????????????????? | | ?## # [# #########??????????????????????????? | | ###"# ## #????????????????????????????????? | | # !## #????????????????????????????????? | | # =#####??##########+#############??????? | | """ + =* #! ###?# u ?????? | | """ # ##+##+### ??# ?????? | | """ # ## == # ##?# ????? | | # ## [# #?# ????? | | # ## " " # #?# @ ????? | | ##### ## "G"= # #?# ###########?????????????? | | ##### ## " % # ???# #???????????????????????? | | ## ! ####?# #???????????????????????? | | #####+### ### p #???????????????????????? | | s g %#???????????????????????? | | #################### Y #???????????????????????? | | ####### *| # #???????????????????????? | | "T""" # " "" # =[#???????????????????????? | | " """ # " % T" # ![%#???????????????????????? | | # " = "" # ![#???????????????????????? | | # " /// # !+ ??????????????????????? | | !! # " /// + # "?????????????????????? | | ! !# " // # # ""????????????????????? | | ! *+ " # #?"""???????????????????? | | # " # #??""???????????????????? | | ####### " [ # #??? ???????????????????? | | ??????# # #???????????????????????? | | ??????# # #???????????????????????? | | ??????#?############ #???????????????????????? | | ???????????????????# #???????????????????????? | | ???????????????????? #???????????????????????? | | ???????????????????? #???????????????????????? | | ???????????????????? ????????????????????????? | | ???????????????????? ??????????????????????????? | +----------------------------------------------------+ Best States ------------- Heat Dissipation 34 Energy Generation 25 Energy Capacity 550 Matter Stores 300 Matter Capacity 450 Sight Range 20 Terrain Scan Density 10 Armor Coverage 450 Resistance: KI 20 Resistance: EM 15 Evasion (%) 45 Recoil Reduction 2 Item Schematics ----------------- Hrd. Medium Armor Plating | -7/Factory | Scanalyzed Robot Schematics ------------------ None Fabricated ------------ Nothing Alien Tech Used ----------------- None Achievements -------------- Remodeling Challenges ------------ None Game ------ Seed ReactionDeepFrame Manual? 0 Play Time 00:50:03 Cumulative 7.1 hours Start 2023.03.04 @ 16:14:20 End 2023.03.04 @ 17:03:09 Sessions 1 Manual Loads 0 Difficulty Rogue Special Mode None Game No. 5 Rogue 5 Adventurer 0 Explorer 0 Win Type - Total 0 Types 0/0/0/0/0/0/0/0/0 Lore% 5 Gallery% 8 Achievement% 9 Wizard Run 0 Options --------- ASCII 0 Keyboard 0 Movement Mouse Keybinds 0 Fullscreen 1 Font 16/Terminus Map View 76x50 Tactical HUD 1 Map Filters NONE Filters NONE Steam 1 RUN: 7c639e1e-f561-4fae-a9f6-0f28c5da3c90